bitfinex/quotes_BTCUSD_20241022
["timestamp","ask_amount","ask_price","bid_price","bid_amount"]
[1729627246624,5.199311,67471.0,67470.0,0.000838]
[1729627246878,5.26571127,67471.0,67470.0,0.000838]
[1729627247363,5.45117966,67471.0,67470.0,0.000838]
[1729627248008,5.60013881,67471.0,67470.0,0.000838]
[1729627248221,5.51167312,67471.0,67470.0,0.000838]
[1729627248663,5.62276457,67471.0,67470.0,0.000838]
[1729627248921,5.62276696,67471.0,67470.0,0.000838]
[1729627249154,4.27107312,67471.0,67470.0,0.000838]
[1729627249412,3.39107312,67471.0,67470.0,0.000838]
[1729627249670,3.25107312,67471.0,67470.0,0.000838]
[1729627251336,3.29720586,67471.0,67470.0,0.000838]
[1729627251770,3.25107312,67471.0,67470.0,0.000838]
[1729627252205,3.25114772,67471.0,67470.0,0.000838]
[1729627255307,3.29729473,67471.0,67470.0,0.000838]
[1729627256423,0.50829473,67471.0,67470.0,0.000838]
[1729627256644,5.55829473,67471.0,67470.0,0.000838]
[1729627262106,5.5583721,67471.0,67470.0,0.000838]
[1729627262374,5.69129294,67471.0,67470.0,0.000838]
[1729627262599,5.5583721,67471.0,67470.0,0.000838]
[1729627263099,3.3773721,67471.0,67470.0,0.000838]
[1729627263355,0.32198708,67471.0,67470.0,0.226552]
[1729627263607,0.06797773,67471.0,67470.0,0.231552]
[1729627263837,0.06797773,67471.0,67470.0,0.24282456]
[1729627263838,0.0015,67471.0,67470.0,0.24282456]
[1729627271711,0.0015,67471.0,67470.0,0.09461056]
[1729627271922,0.0015,67471.0,67470.0,0.24282456]
[1729627277397,0.0015,67471.0,67470.0,0.48788371]
[1729627279599,0.0015,67471.0,67470.0,0.33392456]
[1729627293805,0.0015,67471.0,67470.0,0.16532456]
[1729627294266,0.0015,67471.0,67470.0,0.01511056]
[1729627294690,0.0015,67471.0,67470.0,0.01711056]
[1729627295771,0.0015,67471.0,67470.0,0.16532456]
[1729627297109,0.0015,67471.0,67470.0,0.01711056]
[1729627298203,0.0015,67471.0,67470.0,0.01511056]
[1729627298874,0.0015,67471.0,67470.0,0.01711056]
[1729627299703,0.04586468,67471.0,67470.0,0.01711056]
[1729627300581,0.04586468,67471.0,67470.0,0.16532456]
[1729627300845,0.04586468,67471.0,67470.0,0.01711056]
[1729627301062,0.0015,67471.0,67470.0,0.01711056]
[1729627301716,0.04586468,67471.0,67470.0,0.01711056]
[1729627303201,0.04586468,67471.0,67470.0,0.01511056]
[1729627303654,0.06808031,67471.0,67470.0,0.01511056]
[1729627304705,0.06808031,67471.0,67470.0,0.01711056]
[1729627305547,0.0015,67471.0,67470.0,0.01711056]
[1729627305751,0.16544479,67471.0,67470.0,0.01711056]
[1729627305956,0.0015,67471.0,67470.0,0.01711056]
[1729627306837,0.0015,67471.0,67470.0,0.52423887]
[1729627307047,0.0015,67471.0,67470.0,0.53534528]
[1729627308472,0.0015,67471.0,67470.0,0.54534528]
[1729627309962,0.0015,67471.0,67470.0,0.54533703]
[1729627313494,0.0015,67471.0,67470.0,0.53423887]
[1729627313677,0.0015,67471.0,67470.0,0.54533126]
[1729627314712,0.0015,67471.0,67470.0,0.53423887]
[1729627324471,0.0015,67471.0,67470.0,0.74868269]
[1729627326671,0.0015,67471.0,67470.0,0.64071078]
[1729627328358,0.0015,67471.0,67470.0,0.50138371]
[1729627328561,0.0015,67471.0,67470.0,0.32778371]
[1729627329196,0.0015,67471.0,67470.0,0.16382456]
[1729627329407,0.0015,67471.0,67470.0,0.01561056]
[1729627329617,0.0015,67471.0,67470.0,0.01361056]
[1729627330529,0.0015,67471.0,67470.0,0.16382456]
[1729627334883,0.0015,67471.0,67470.0,0.16465056]
[1729627335892,0.0015,67471.0,67470.0,0.16265056]
[1729627336113,0.0015,67471.0,67470.0,0.16465056]
[1729627336313,0.0015,67471.0,67470.0,0.49040558]
[1729627336526,0.0015,67471.0,67470.0,0.48744143]
[1729627336733,0.0015,67471.0,67470.0,0.4985375]
[1729627337667,0.0015,67471.0,67470.0,0.498537]
[1729627338272,0.0015,67471.0,67470.0,0.503537]
[1729627338473,0.0015,67471.0,67470.0,0.508537]
[1729627341498,0.0015,67471.0,67470.0,0.51963226]
[1729627341711,0.0015,67471.0,67470.0,0.50853669]
[1729627345419,0.0015,67471.0,67470.0,0.50853522]
[1729627346563,0.003152,67471.0,67470.0,0.50853522]
[1729627349883,0.003152,67471.0,67470.0,0.49853522]
[1729627350093,0.003152,67471.0,67470.0,0.50853522]
[1729627350537,0.003152,67471.0,67470.0,0.63640614]
[1729627352418,0.003152,67471.0,67470.0,0.62531235]
[1729627352621,0.003152,67471.0,67470.0,0.63640434]
[1729627354446,0.003152,67471.0,67470.0,0.68350378]
[1729627355736,0.003152,67471.0,67470.0,0.68550378]
[1729627355952,0.003152,67471.0,67470.0,0.68350378]
[1729627356186,0.003152,67471.0,67470.0,0.68350276]
[1729627356622,0.001652,67476.0,67470.0,0.68350276]
[1729627356623,0.001652,67476.0,67475.0,0.021]
[1729627356843,0.22196409,67488.0,67485.0,0.16379156]
[1729627357072,0.22196409,67488.0,67485.0,0.42867962]
[1729627357296,0.22196409,67495.0,67485.0,0.61630177]
[1729627357517,0.22196409,67495.0,67485.0,0.76526092]
[1729627359487,0.22196409,67495.0,67485.0,0.76726092]
[1729627360339,0.22196409,67495.0,67485.0,0.82791201]
[1729627361204,0.22196409,67495.0,67485.0,0.82591201]
[1729627361626,0.22196409,67495.0,67485.0,0.65729534]
[1729627361840,0.22196409,67495.0,67485.0,0.33383619]
[1729627361841,0.0779,67494.0,67485.0,0.33383619]
[1729627362108,0.0779,67494.0,67485.0,0.49636738]
[1729627362320,0.22196409,67495.0,67485.0,0.49636738]
[1729627364597,0.22196409,67495.0,67485.0,0.50743264]
[1729627365006,0.22196409,67495.0,67485.0,0.49636738]
[1729627366209,0.22196409,67495.0,67485.0,0.50743691]
[1729627366584,0.22196409,67495.0,67485.0,0.6472921]
[1729627367306,0.00147361,67486.0,67485.0,0.6472921]
[1729627367771,0.00147361,67486.0,67485.0,0.47867543]
[1729627367986,0.00147361,67486.0,67485.0,0.6472921]
[1729627368233,0.00147361,67486.0,67485.0,0.63622257]
[1729627372126,0.00147361,67486.0,67485.0,0.64728886]
[1729627373666,0.00147361,67486.0,67485.0,0.63622257]
[1729627373956,0.00147361,67486.0,67485.0,0.64728808]
[1729627375336,0.00147361,67486.0,67485.0,0.63622257]
[1729627375541,0.00147361,67486.0,67485.0,0.64728846]
[1729627376941,0.00147361,67486.0,67485.0,0.63622257]
[1729627377106,0.00147361,67486.0,67485.0,0.64728919]
[1729627380338,0.00147361,67486.0,67485.0,0.84338919]
[1729627380547,0.00147361,67486.0,67485.0,0.92178919]
[1729627381213,0.00147361,67486.0,67485.0,0.92261519]
[1729627382377,0.00147361,67486.0,67485.0,0.87021643]
[1729627390150,0.00147361,67486.0,67485.0,0.85914981]
[1729627390351,0.00147361,67486.0,67485.0,0.87026335]
[1729627394192,0.00147361,67486.0,67485.0,0.87026431]
[1729627394406,0.00147361,67486.0,67485.0,0.85914981]
[1729627394814,0.00147361,67486.0,67485.0,0.87026429]
[1729627400424,0.00147361,67486.0,67485.0,0.69576429]
[1729627401039,0.00147361,67486.0,67485.0,0.6957646]
[1729627401453,0.00147361,67486.0,67485.0,0.74008523]
[1729627402010,0.00147361,67486.0,67485.0,0.74019128]
[1729627402384,0.00147361,67486.0,67485.0,0.9247501]
[1729627404736,0.00147361,67486.0,67485.0,0.76240463]
[1729627404914,0.00147361,67486.0,67485.0,0.75128984]
[1729627405087,0.00147361,67486.0,67485.0,0.76240514]
[1729627405714,0.00147361,67486.0,67485.0,0.92479213]
[1729627406588,0.00147361,67486.0,67485.0,0.69576511]
[1729627406841,0.00147361,67486.0,67485.0,0.92469914]
[1729627407715,0.00147361,67486.0,67485.0,0.85801951]
[1729627408451,0.00147361,67486.0,67485.0,0.85801971]
[1729627408676,0.00147361,67486.0,67485.0,0.84690421]
[1729627408909,0.00147361,67486.0,67485.0,0.85801974]
[1729627410094,0.00147361,67486.0,67485.0,0.94692591]
[1729627410341,0.00147361,67486.0,67485.0,0.85801974]
[1729627411298,0.00147361,67486.0,67485.0,0.9247045]
[1729627411519,0.00147361,67486.0,67485.0,0.85971855]
[1729627412009,0.00147361,67486.0,67485.0,0.94863226]
[1729627416487,0.00147361,67486.0,67485.0,0.85971855]
[1729627417122,0.00147361,67486.0,67485.0,0.94863846]
[1729627417359,0.00147361,67486.0,67485.0,0.85971855]
[1729627417856,0.00147361,67486.0,67485.0,0.94863944]
[1729627418043,0.00147361,67486.0,67485.0,0.85971855]
[1729627418633,0.00147361,67486.0,67485.0,0.97086069]
[1729627419000,0.00147361,67486.0,67485.0,0.85971855]
[1729627419205,0.00147361,67486.0,67485.0,0.85972012]
[1729627419461,0.00147361,67486.0,67485.0,0.97086226]
[1729627420085,0.00147361,67486.0,67485.0,0.97087147]
[1729627420920,0.00147361,67486.0,67485.0,0.97104157]
[1729627421333,0.00147361,67486.0,67485.0,0.85988966]
[1729627421556,0.001652,67501.0,67485.0,0.85988966]
[1729627421557,0.001652,67501.0,67500.0,0.16875856]
[1729627421763,0.001652,67501.0,67500.0,0.46589112]
[1729627421978,0.001652,67501.0,67500.0,0.50738438]
[1729627422391,0.001652,67501.0,67500.0,0.46292858]
[1729627422596,0.001652,67501.0,67500.0,0.52961228]
[1729627422836,0.001652,67501.0,67500.0,0.46292858]
[1729627423037,0.001652,67501.0,67500.0,0.50736066]
[1729627423457,0.001652,67501.0,67500.0,0.46292858]
[1729627423662,0.001652,67501.0,67500.0,0.51736066]
[1729627423900,0.001652,67501.0,67500.0,0.47292858]
[1729627424112,0.001652,67501.0,67500.0,0.58914649]
[1729627424331,0.001652,67501.0,67500.0,0.51732944]
[1729627424541,0.001652,67501.0,67500.0,0.58914649]
[1729627424970,0.001652,67501.0,67500.0,0.75583019]
[1729627425214,0.001652,67501.0,67500.0,0.80351037]
[1729627425437,0.001652,67501.0,67500.0,0.57292858]
[1729627426395,0.001652,67501.0,67500.0,0.61730474]
[1729627427361,0.001652,67501.0,67500.0,0.57292858]
[1729627427827,0.001652,67501.0,67500.0,0.69114649]
[1729627428087,0.001652,67501.0,67500.0,0.78384649]
[1729627428322,0.001652,67501.0,67500.0,0.85120078]
[1729627429261,0.001652,67501.0,67500.0,0.80684649]
[1729627429538,0.001652,67501.0,67500.0,0.73497301]
[1729627430017,0.001652,67501.0,67500.0,0.73493615]
[1729627431023,0.001652,67501.0,67500.0,0.69059267]
[1729627431255,0.001652,67501.0,67500.0,0.73493615]
[1729627431489,0.001652,67501.0,67500.0,0.69059267]
[1729627431983,0.001652,67501.0,67500.0,0.80681058]
[1729627433625,0.001652,67501.0,67500.0,0.80680418]
[1729627435050,0.001652,67501.0,67500.0,0.69058627]
[1729627436927,0.001652,67501.0,67500.0,0.80680418]
[1729627437904,0.001652,67510.0,67509.0,0.17873856]
[1729627438144,0.001652,67510.0,67509.0,0.56675151]
[1729627438532,0.001652,67510.0,67509.0,0.56178948]
[1729627439261,0.001652,67510.0,67509.0,0.57286084]
[1729627440722,0.084452,67510.0,67509.0,0.44664293]
[1729627440968,0.084452,67510.0,67509.0,0.34557157]
[1729627441694,0.084452,67510.0,67509.0,0.33557157]
[1729627441937,0.084452,67510.0,67509.0,0.34557157]
[1729627442175,0.084452,67510.0,67509.0,0.46178948]
[1729627442670,0.001652,67510.0,67509.0,0.46178948]
[1729627443381,0.001652,67510.0,67509.0,0.57285847]
[1729627445125,0.001652,67510.0,67509.0,0.59585847]
[1729627445399,0.22196409,67524.0,67523.0,0.17870756]
[1729627445620,0.22196409,67524.0,67523.0,0.56080366]
[1729627445843,0.22196409,67524.0,67523.0,0.56891104]
[1729627446060,0.0814,67534.0,67530.0,0.16869256]
[1729627446291,0.0814,67534.0,67530.0,0.43386962]
[1729627446512,0.0814,67534.0,67533.0,0.16368556]
[1729627446728,0.0814,67534.0,67533.0,0.41213803]
[1729627448065,0.0959,67537.0,67536.0,0.15934156]
[1729627448285,0.001652,67545.0,67538.0,0.1600882]
[1729627448286,0.083578,67539.0,67538.0,0.1600882]
[1729627451236,0.001678,67539.0,67538.0,0.1600882]
[1729627451495,0.001678,67539.0,67538.0,0.31404735]
[1729627452668,0.001678,67539.0,67538.0,0.4630065]
[1729627454996,0.001678,67539.0,67538.0,0.4730065]
[1729627456181,0.001678,67539.0,67538.0,0.5730065]
[1729627459012,0.001678,67539.0,67538.0,0.5960065]
[1729627459241,0.001678,67539.0,67538.0,0.5980065]
[1729627459459,0.001678,67539.0,67538.0,0.5960065]
[1729627459670,0.001678,67539.0,67538.0,0.60703334]
[1729627460107,0.001678,67539.0,67538.0,0.60903334]
[1729627460805,0.001678,67539.0,67538.0,0.60703334]
[1729627461224,0.001678,67539.0,67538.0,0.60985834]
[1729627462531,0.001678,67539.0,67538.0,0.60785834]
[1729627464250,0.001678,67539.0,67538.0,0.60985834]
[1729627469523,0.001678,67539.0,67538.0,0.5988315]
[1729627469737,0.001678,67539.0,67538.0,0.60986566]
[1729627469971,0.001678,67539.0,67538.0,0.5988315]
[1729627470391,0.001678,67539.0,67538.0,0.60986508]
[1729627471736,0.001678,67539.0,67538.0,0.70586508]
[1729627477603,0.001678,67539.0,67538.0,0.70186508]
[1729627477842,0.001678,67539.0,67538.0,0.70586508]
[1729627480905,0.001678,67539.0,67538.0,0.70186508]
[1729627481153,0.001678,67539.0,67538.0,0.70190092]
[1729627481367,0.001678,67539.0,67538.0,0.70590092]
[1729627483768,0.001652,67545.0,67544.0,0.0250242]
[1729627483984,0.001652,67545.0,67544.0,0.70094201]
[1729627484222,0.001652,67545.0,67544.0,0.5847241]
[1729627484470,0.001652,67545.0,67544.0,0.70094552]
[1729627484710,0.001652,67545.0,67544.0,0.58472761]
[1729627484950,0.001652,67545.0,67544.0,0.70294552]
[1729627488069,0.001652,67545.0,67544.0,0.70294765]
[1729627489204,0.001652,67545.0,67544.0,0.74703233]
[1729627489543,0.001652,67545.0,67544.0,0.7471268]
[1729627490146,0.001652,67545.0,67544.0,0.76921637]
[1729627491215,0.001652,67545.0,67544.0,0.93039963]
[1729627491425,0.001652,67545.0,67544.0,0.93239963]
[1729627491636,0.001652,67545.0,67544.0,0.93039963]
[1729627492267,0.001652,67545.0,67544.0,0.86413091]
[1729627492478,0.001652,67545.0,67544.0,0.93044438]
[1729627492946,0.001652,67545.0,67544.0,0.93244438]
[1729627493165,0.001652,67545.0,67544.0,0.86613091]
[1729627493597,0.001652,67545.0,67544.0,0.86413091]
[1729627494031,0.001652,67545.0,67544.0,0.86613091]
[1729627494249,0.001652,67545.0,67544.0,0.95464893]
[1729627494466,0.001652,67545.0,67544.0,0.86619934]
[1729627495350,0.001652,67545.0,67544.0,0.95464893]
[1729627496436,0.001652,67545.0,67544.0,0.95547393]
[1729627497120,0.001652,67545.0,67544.0,0.86702434]
[1729627498241,0.001652,67545.0,67544.0,0.97758633]
[1729627499535,0.001652,67545.0,67544.0,0.97759038]
[1729627500616,0.001652,67545.0,67544.0,0.86606267]
[1729627502122,0.001652,67545.0,67544.0,0.95616267]
[1729627502343,0.001652,67545.0,67544.0,0.9560824]
[1729627505681,0.001652,67545.0,67544.0,0.94500329]
[1729627505878,0.001652,67545.0,67544.0,0.95608226]
[1729627509880,0.001652,67545.0,67544.0,0.72164644]
[1729627510093,0.001652,67545.0,67544.0,0.74976435]
[1729627510308,0.001652,67545.0,67544.0,0.86598226]
[1729627511570,0.001652,67545.0,67544.0,0.86722471]
[1729627514540,0.001652,67545.0,67544.0,0.85614574]
[1729627515865,0.001652,67545.0,67544.0,0.85414574]
[1729627516565,0.001652,67545.0,67544.0,0.90013908]
[1729627516780,0.001652,67545.0,67544.0,0.85414574]
[1729627517017,0.001652,67545.0,67544.0,0.90013909]
[1729627517274,0.001652,67545.0,67544.0,0.90213909]
[1729627517489,0.001652,67545.0,67544.0,0.90013909]
[1729627519295,0.001652,67545.0,67544.0,1.03301206]
[1729627520264,0.001652,67545.0,67544.0,0.91679415]
[1729627520981,0.001652,67545.0,67544.0,1.03301206]
[1729627521232,0.001652,67545.0,67544.0,1.03501206]
[1729627521471,0.001652,67545.0,67544.0,1.03301206]
[1729627524415,0.001652,67545.0,67544.0,0.90013909]
[1729627525755,0.001652,67545.0,67544.0,0.89997003]
[1729627526185,0.001652,67545.0,67544.0,0.60585466]
[1729627526406,0.001652,67545.0,67544.0,0.73775877]
[1729627526614,0.001652,67545.0,67544.0,0.52154086]
[1729627526820,0.001652,67545.0,67544.0,0.63775877]
[1729627527879,0.001652,67545.0,67544.0,0.73775877]
[1729627528527,0.001652,67545.0,67544.0,0.85397668]
[1729627530564,0.001652,67545.0,67544.0,0.62186245]
[1729627530752,0.001652,67545.0,67544.0,0.85429827]
[1729627535141,0.001652,67545.0,67544.0,0.85427892]
[1729627536861,0.000826,67548.0,67547.0,0.53050502]
[1729627537079,0.001678,67554.0,67553.0,0.0260242]
[1729627537294,0.001678,67554.0,67553.0,0.68145017]
[1729627537518,0.00765201,67554.0,67553.0,0.72881359]
[1729627537754,0.001678,67554.0,67553.0,0.72881359]
[1729627537977,0.001678,67554.0,67553.0,0.87677274]
[1729627538205,0.001678,67554.0,67553.0,0.87577274]
[1729627544106,0.001678,67554.0,67553.0,0.94142681]
[1729627546160,0.001678,67554.0,67553.0,0.83074854]
[1729627546761,0.001678,67554.0,67553.0,0.94142681]
[1729627547269,0.001678,67554.0,67553.0,0.83074854]
[1729627549131,0.001678,67554.0,67553.0,0.83054351]
[1729627552181,0.001678,67554.0,67553.0,0.91902672]
[1729627552592,0.001678,67554.0,67553.0,0.77089357]
[1729627552801,0.001678,67554.0,67553.0,0.91011148]
[1729627553024,0.001678,67554.0,67553.0,0.56619245]
[1729627553246,0.001678,67554.0,67553.0,0.68241036]
[1729627553657,0.001678,67554.0,67553.0,0.7708937]
[1729627554067,0.001678,67554.0,67553.0,0.79304168]
[1729627555669,0.170578,67554.0,67553.0,0.56619245]
[1729627555884,0.170578,67554.0,67553.0,0.44207082]
[1729627556089,0.170578,67554.0,67553.0,0.40281615]
[1729627560766,0.170578,67554.0,67553.0,0.51903406]
[1729627561200,0.170578,67554.0,67553.0,0.29781615]
[1729627563172,0.16907686,67554.0,67553.0,0.29781615]
[1729627563389,0.16907686,67554.0,67553.0,0.42854306]
[1729627565289,0.16907686,67554.0,67553.0,0.29781615]
[1729627567169,0.00017686,67554.0,67553.0,0.29781615]
[1729627570538,0.00017686,67554.0,67553.0,0.41403406]
[1729627570955,5.74e-06,67554.0,67553.0,0.41403406]
[1729627571376,5.74e-06,67554.0,67553.0,0.51403406]
[1729627571799,5.74e-06,67554.0,67553.0,0.66299321]
[1729627572022,0.28912365,67554.0,67553.0,0.148857]
[1729627572236,0.30412365,67554.0,67553.0,0.000826]
[1729627572454,0.015,67548.0,67547.0,0.148045]
[1729627573199,0.18979143,67548.0,67547.0,0.148045]
[1729627575879,0.18979143,67548.0,67547.0,0.149697]
[1729627577457,0.18479143,67548.0,67547.0,0.149697]
[1729627577675,0.17479143,67548.0,67547.0,0.149697]
[1729627577915,0.1689,67548.0,67547.0,0.149697]
[1729627578579,0.00500574,67554.0,67553.0,0.148031]
[1729627578810,5.74e-06,67554.0,67553.0,0.26424891]
[1729627579072,0.08000574,67554.0,67553.0,0.26424891]
[1729627579285,0.08000574,67554.0,67553.0,0.148031]
[1729627579974,0.08500574,67554.0,67553.0,0.148031]
[1729627580446,0.08000574,67554.0,67553.0,0.148031]
[1729627582106,0.08500574,67554.0,67553.0,0.148031]
[1729627582308,0.08000574,67554.0,67553.0,0.148031]
[1729627584159,0.08000574,67554.0,67553.0,0.26424891]
[1729627587206,0.08000574,67554.0,67553.0,0.26590091]
[1729627589304,0.08000574,67554.0,67553.0,0.149683]
[1729627592924,0.08000574,67554.0,67553.0,0.001652]
[1729627592925,0.22031682,67554.0,67553.0,0.001652]
[1729627593136,0.31041682,67554.0,67553.0,0.001652]
[1729627593837,0.30132365,67554.0,67553.0,0.001652]
[1729627595441,0.44935265,67554.0,67553.0,0.001652]
[1729627595647,0.30132365,67554.0,67553.0,0.001652]
[1729627597197,0.18510574,67554.0,67553.0,0.149683]
[1729627597419,0.18510574,67554.0,67553.0,0.001652]
[1729627597655,0.18510574,67554.0,67553.0,0.149683]
[1729627599515,0.17010574,67554.0,67553.0,0.149683]
[1729627599977,0.00500574,67554.0,67553.0,0.149683]
[1729627600949,0.01500574,67554.0,67553.0,0.149683]
[1729627603639,0.00500574,67554.0,67553.0,0.149683]
[1729627603946,0.01500574,67554.0,67553.0,0.149683]
[1729627604852,0.01504574,67554.0,67553.0,0.149683]
[1729627605543,0.00504574,67554.0,67553.0,0.149683]
[1729627606536,0.01004574,67554.0,67553.0,0.149683]
[1729627606996,0.01504574,67554.0,67553.0,0.149683]
[1729627607705,4.574e-05,67554.0,67553.0,0.149683]
[1729627607953,0.00504574,67554.0,67553.0,0.149683]
[1729627608460,4.574e-05,67554.0,67553.0,0.149683]
[1729627616734,4.574e-05,67554.0,67553.0,0.26484047]
[1729627616981,4.574e-05,67554.0,67553.0,0.29864215]
[1729627617191,4.574e-05,67554.0,67553.0,0.30971774]
[1729627618340,4.574e-05,67554.0,67553.0,0.29864215]
[1729627618555,4.574e-05,67554.0,67553.0,0.30971774]
[1729627618761,4.574e-05,67554.0,67553.0,0.45664806]
[1729627620642,4.574e-05,67554.0,67553.0,0.16075859]
[1729627620872,0.12126365,67554.0,67553.0,0.149683]
[1729627622068,0.00504574,67554.0,67553.0,0.149683]
[1729627624437,0.39082982,67554.0,67553.0,0.001652]
[1729627624769,5.84096759,67554.0,67553.0,0.001652]
[1729627625194,0.83718417,67554.0,67553.0,0.001652]
[1729627625418,5.84096759,67554.0,67553.0,0.001652]
[1729627626726,5.72474968,67554.0,67553.0,0.001652]
[1729627626941,5.84096759,67554.0,67553.0,0.001652]
[1729627628264,5.72474968,67554.0,67553.0,0.001652]
[1729627628480,5.84096759,67554.0,67553.0,0.001652]
[1729627628689,5.84196759,67554.0,67553.0,0.001652]
[1729627628899,5.84096759,67554.0,67553.0,0.001652]
[1729627630928,5.88913028,67554.0,67553.0,0.001652]
[1729627631152,5.8891302,67554.0,67553.0,0.001652]
[1729627631959,5.84978744,67554.0,67553.0,0.001652]
[1729627632210,5.84778744,67554.0,67553.0,0.001652]
[1729627632451,6.26798365,67554.0,67553.0,0.001652]
[1729627632662,6.03893889,67554.0,67553.0,0.001652]
[1729627633084,5.90593964,67554.0,67553.0,0.001652]
[1729627633941,5.90566189,67554.0,67553.0,0.001652]
[1729627634836,5.85950969,67554.0,67553.0,0.001652]
[1729627636580,5.9757276,67554.0,67553.0,0.001652]
[1729627636796,5.9816526,67554.0,67553.0,0.001652]
[1729627638529,5.98155542,67554.0,67553.0,0.001652]
[1729627639882,5.97563042,67554.0,67553.0,0.001652]
[1729627642527,4.2851946,67554.0,67553.0,0.001652]
[1729627642755,0.91038351,67554.0,67553.0,0.001652]
[1729627642986,0.9988879,67554.0,67553.0,0.001652]
[1729627643219,0.91038351,67554.0,67553.0,0.001652]
[1729627643460,0.92639757,67554.0,67553.0,0.001652]
[1729627644087,1.07442657,67554.0,67553.0,0.001652]
[1729627644546,0.91098571,67554.0,67553.0,0.001652]
[1729627644759,1.07432173,67554.0,67553.0,0.001652]
[1729627644973,0.91098571,67554.0,67553.0,0.001652]
[1729627645395,0.97735478,67554.0,67553.0,0.001652]
[1729627645826,0.91098571,67554.0,67553.0,0.001652]
[1729627646056,0.97735478,67554.0,67553.0,0.001652]
[1729627646289,0.91098571,67554.0,67553.0,0.001652]
[1729627647160,0.32630463,67554.0,67553.0,0.001652]
[1729627647383,0.0210598,67554.0,67553.0,0.001652]
[1729627653261,0.1690888,67554.0,67553.0,0.001652]
[1729627653502,0.43626586,67554.0,67553.0,0.001652]
[1729627653719,0.36229278,67554.0,67553.0,0.001652]
[1729627656756,0.31804795,67554.0,67553.0,0.001652]
[1729627656962,0.36230985,67554.0,67553.0,0.001652]
[1729627657173,0.31804795,67554.0,67553.0,0.001652]
[1729627657627,0.38441702,67554.0,67553.0,0.001652]
[1729627658728,0.43064233,67554.0,67553.0,0.001652]
[1729627660398,0.36427326,67554.0,67553.0,0.001652]
[1729627660625,0.52773148,67554.0,67553.0,0.001652]
[1729627660849,0.37970951,67554.0,67553.0,0.001652]
[1729627661061,0.21624426,67554.0,67553.0,0.001652]
[1729627661272,0.36427326,67554.0,67553.0,0.001652]
[1729627661474,0.52775511,67554.0,67553.0,0.001652]
[1729627661726,0.6162595,67554.0,67553.0,0.001652]
[1729627662151,0.38448065,67554.0,67553.0,0.001652]
[1729627662785,0.38449156,67554.0,67553.0,0.001652]
[1729627663027,0.23646256,67554.0,67553.0,0.001652]
[1729627663245,0.30475193,67554.0,67553.0,0.001652]
[1729627663458,0.4682654,67554.0,67553.0,0.001652]
[1729627663666,0.42203681,67554.0,67553.0,0.001652]
[1729627664293,0.33353242,67554.0,67553.0,0.001652]
[1729627664506,0.4441665,67554.0,67553.0,0.001652]
[1729627664943,0.33353242,67554.0,67553.0,0.001652]
[1729627665385,0.42220368,67554.0,67553.0,0.001652]
[1729627665893,0.48156142,67554.0,67553.0,0.001652]
[1729627666721,0.5921955,67554.0,67553.0,0.001652]
[1729627666921,0.48156142,67554.0,67553.0,0.001652]
[1729627667337,0.5921955,67554.0,67553.0,0.001652]
[1729627667544,0.48156142,67554.0,67553.0,0.001652]
[1729627667757,5.64977933,67554.0,67553.0,0.001652]
[1729627667936,5.69400552,67554.0,67553.0,0.001652]
[1729627668213,5.57778761,67554.0,67553.0,0.001652]
[1729627669050,5.53156142,67554.0,67553.0,0.001652]
[1729627669914,5.72200822,67554.0,67553.0,0.001652]
[1729627670131,5.85683635,67554.0,67553.0,0.001652]
[1729627670351,5.85683635,67554.0,67547.0,0.001652]
[1729627670352,0.005,67549.0,67547.0,0.001652]
[1729627670569,5.72741462,67548.0,67547.0,0.001652]
[1729627670805,5.73113686,67548.0,67547.0,0.001652]
[1729627671227,5.73146454,67548.0,67547.0,0.001652]
[1729627672764,5.74346454,67548.0,67547.0,0.001652]
[1729627672978,6.01908436,67548.0,67547.0,0.001652]
[1729627674898,5.92378436,67548.0,67547.0,0.001652]
[1729627675127,1.01252254,67548.0,67547.0,0.001652]
[1729627675329,1.12874045,67548.0,67547.0,0.001652]
[1729627676617,1.27678245,67548.0,67547.0,0.001652]
[1729627678068,1.16056454,67548.0,67547.0,0.001652]
[1729627678489,1.01252254,67548.0,67547.0,0.001652]
[1729627679561,1.16737876,67548.0,67547.0,0.001652]
[1729627680192,1.16237876,67548.0,67547.0,0.001652]
[1729627680910,1.01433676,67548.0,67547.0,0.001652]
[1729627681828,1.00933676,67548.0,67547.0,0.001652]
[1729627682049,1.16237876,67548.0,67547.0,0.001652]
[1729627683591,1.00037876,67548.0,67547.0,0.001652]
[1729627683820,1.00035296,67548.0,67547.0,0.001652]
[1729627684480,0.52135296,67548.0,67547.0,0.001652]
[1729627684712,1.79135296,67548.0,67547.0,0.001652]
[1729627687547,1.27935296,67548.0,67547.0,0.001652]
[1729627688147,3.38535296,67548.0,67547.0,0.001652]
[1729627688612,3.38035296,67548.0,67547.0,0.001652]
[1729627688845,1.68135296,67548.0,67547.0,0.001652]
[1729627689084,1.68135296,67548.0,67516.0,0.06650862]
[1729627689085,0.005,67517.0,67516.0,0.06650862]
[1729627689309,0.005,67518.0,67513.0,0.22196409]
[1729627689310,0.015,67516.0,67513.0,0.22196409]
[1729627689531,0.163113,67516.0,67506.0,0.22196409]
[1729627689774,5.38264445,67516.0,67506.0,0.22196409]
[1729627690218,5.3834906,67516.0,67505.0,0.0981]
[1729627690428,5.55216389,67516.0,67505.0,0.246236]
[1729627690853,5.55216389,67516.0,67506.0,0.148132]
[1729627690854,5.66291705,67516.0,67506.0,0.148132]
[1729627691071,5.55216389,67516.0,67506.0,0.148134]
[1729627691301,1.40877203,67516.0,67505.0,0.0981]
[1729627691512,1.20272428,67516.0,67508.0,0.148129]
[1729627691720,0.98630496,67516.0,67508.0,0.148129]
[1729627692382,1.03058275,67516.0,67508.0,0.148129]
[1729627692612,0.98630496,67516.0,67508.0,0.148129]
[1729627693029,0.98630496,67516.0,67505.0,0.0981]
[1729627693245,0.98630496,67516.0,67507.0,0.148132]
[1729627695235,0.98630496,67516.0,67505.0,0.0981]
[1729627695457,0.98630496,67516.0,67506.0,0.148134]
[1729627696102,0.98630496,67516.0,67507.0,0.148132]
[1729627700565,0.33830496,67516.0,67506.0,0.148133]
[1729627700796,2.20730496,67516.0,67506.0,0.148133]
[1729627701255,2.20730496,67516.0,67505.0,0.0981]
[1729627701496,2.20730496,67516.0,67506.0,0.02319183]
[1729627701726,2.20730496,67516.0,67506.0,0.17132583]
[1729627702429,2.20730496,67516.0,67506.0,0.148134]
[1729627702662,2.20730496,67516.0,67515.0,0.008326]
[1729627712345,2.15484151,67516.0,67515.0,0.008326]
[1729627713208,5.33584151,67516.0,67515.0,0.008326]